{"text_format":"1","workbook":"xlsx","n_sheets":3,"sheets":["Relación de gastos","Relación de ingresos ","Gastos e ingresos"],"not_rendered":{"charts":0,"images":4,"macros":1,"external_links":0,"defined_names":8,"comments":3,"pivot_tables":0},"unopened":[],"bounds":{"document_bytes":16777216,"sheet_cells":100000,"rows_first":2000,"rows_last":500,"rows_between":2000,"halvings":0,"cell_chars":16384,"cell_head_chars":4096},"cells_cut":0,"cells_raw":0,"read":"whole","date_system":"1900"}

{"sheet":"Relación de gastos","index":0,"n_rows":144,"n_cols":12,"rows_kept":144,"cut":false,"hidden":false,"merged":[[98,3,98,10],[100,0,100,10],[101,0,101,2],[103,0,103,10],[107,0,107,11],[119,0,119,11],[127,0,127,11],[134,0,134,11],[16,11,16,12],[32,11,32,12],[31,11,31,12],[25,11,25,12],[24,11,24,12],[41,0,41,12],[17,0,17,12],[18,11,18,12],[19,11,19,12],[29,0,29,12],[35,0,35,12],[30,11,30,12],[102,0,102,10],[108,0,108,11],[26,11,26,12],[28,0,28,6],[9,0,9,12],[10,0,10,1],[0,0,0,12],[4,0,4,1],[16,0,16,6],[2,2,2,3],[3,2,3,3],[4,2,4,3],[12,11,12,12],[2,0,2,1],[3,0,3,1],[7,1,8,1],[7,0,8,0],[6,0,6,4],[7,11,7,12],[8,11,8,12],[11,0,11,12],[7,3,7,4],[2,4,2,6],[3,4,3,6],[4,4,4,6],[7,2,8,2],[2,9,2,10],[3,9,3,10],[4,9,4,10],[13,11,13,12],[80,11,80,12],[67,11,67,12],[66,11,66,12],[75,0,75,12],[80,0,80,6],[76,11,76,12],[79,11,79,12],[44,11,44,12],[78,11,78,12],[15,11,15,12],[69,0,69,12],[74,0,74,6],[68,0,68,6],[63,0,63,12],[46,0,46,6],[28,11,28,12],[27,11,27,12],[72,11,72,12],[71,11,71,12],[68,11,68,12],[40,11,40,12],[20,11,20,12],[23,0,23,12],[36,11,36,12],[34,11,34,12],[33,11,33,12],[21,11,21,12],[22,0,22,6],[22,11,22,12],[104,0,104,10],[105,0,105,10],[81,0,81,12],[88,0,88,5],[88,11,88,12],[92,0,93,10],[95,1,95,2],[96,4,97,10],[34,0,34,6],[42,11,42,12],[53,11,53,12],[52,11,52,12],[51,11,51,12],[50,11,50,12],[46,11,46,12],[45,11,45,12],[43,11,43,12],[120,0,120,11],[121,0,121,11],[122,0,122,11],[123,0,123,11],[124,0,124,11],[125,0,125,11],[54,0,54,6],[49,0,49,12],[74,11,74,12],[73,11,73,12],[87,0,87,2],[87,3,87,6],[87,11,87,12],[82,11,82,12],[84,11,84,12],[85,11,85,12],[86,0,86,6],[86,11,86,12],[64,11,64,12],[65,11,65,12],[91,0,91,10],[62,0,62,1],[70,11,70,12],[54,11,54,12],[37,11,37,12],[40,0,40,6],[39,11,39,12],[38,11,38,12],[48,0,48,1],[60,0,60,6],[56,11,56,12],[57,11,57,12],[58,11,58,12],[59,11,59,12],[60,11,60,12],[55,0,55,12],[109,0,109,11],[110,0,110,11],[111,0,111,11],[112,0,112,11],[113,0,113,11],[114,0,114,11],[115,0,115,11],[116,0,116,11],[117,0,117,11],[137,0,137,11],[138,0,138,11],[139,0,139,11],[140,0,140,11],[141,0,141,11],[142,0,142,11],[143,0,143,11],[128,0,128,11],[129,0,129,11],[130,0,130,11],[131,0,131,11],[132,0,132,11],[135,0,135,11],[136,0,136,11]]}
["Relación clasificada de todos los gastos realizados para la ejecución de la actividad subvencionada"]
[]
["Persona física/jurídica beneficiaria:         ",null,null,null,"Importe del coste total del proyecto:",null,null,null,null,null,null,"euros"]
["Código de subvención:",null,null,null,"Importe de la subvención otorgada:",null,null,null,null,null,null,"euros"]
["Nombre del proyecto subvencionado:",null,null,null,"Período de ejecución del proyecto subvencionado:",null,null,null,null,null,null,"a"]
[]
["Gastos del proyecto/actividad/servicio subvencionado (*)"]
["Núm. de orden (0)\n\n","Número de documento: justificantes gasto personal(1), factura o recibo/tiquet(2)","Concepto de la factura / \ndocumento probatorio equivalente\n","Emisor/a de la factura",null,"Fecha de emisión","Importe total de la factura","Porcentaje de IVA deducido o el de después de aplicar la prorrata","Importe después de deducir el IVA correspondiente","Importe imputable (dedicado) al proyecto (3)","Importe imputable a la subvención municipal (4)","Observaciones"]
[null,null,null,"NIF","Nombre","dd/mm/aaaa","euros","%","euros","euros","euros"]
["GASTOS DIRECTOS (Aquellos que se identifican directamente con el proyecto)"]
["Submodalidad AC1"]
["AC1.D1.   Honorarios de las personas formadoras externas (precio máximo hora 60€/hora, incluído IRPF si corresponde, no incluído IVA si formación no está exenta)"]
[]
[]
[]
[]
[null,null,null,null,null,null,null,null,"Subtotal D.1",{"$f":"SUM(J13:J16)","v":0},{"$f":"SUM(K13:K16)","v":0}]
["AC1.D2.   Alquiler de biens immuebles vinculados directamente a la realitzación de la formación"]
[]
[]
[]
[]
[null,null,null,null,null,null,null,null,"Subtotal D.2",{"$f":"SUM(J19:J22)","v":0},{"$f":"SUM(K19:K22)","v":0}]
["AC1.D3. Adquisición de materiales i bienes consumibles necesarios para la realización de la formación"]
[]
[]
[]
[]
[null,null,null,null,null,null,null,null,"Subtotal D.3",{"$f":"SUM(J25:J28)","v":0},{"$f":"SUM(K25:K28)","v":0}]
["AC1.D4.  Transporte – mensajería directamente vinculado con la realización de la formación"]
[]
[]
[]
[]
[null,null,null,null,null,null,null,null,"Subtotal D.4",{"$f":"SUM(J31:J34)","v":0},{"$f":"SUM(K31:K34)","v":0}]
["AC1.D5.  Seguros"]
[]
[]
[]
[]
[null,null,null,null,null,null,null,null,"Subtotal D.5",{"$f":"SUM(J37:J40)","v":0},{"$f":"SUM(K37:K40)","v":0}]
["AC1.D6.  Viajes y desplazamientos imputables a las actividades del proyecto  (máximo 10% subvención) "]
[]
[]
[]
[]
[null,null,null,null,null,null,null,null,"Subtotal D.6",{"$f":"SUM(J43:J46)","v":0},{"$f":"SUM(K43:K46)","v":0}]
[]
["Submodalidad AC2"]
["AC2.D1.  Gastos de matriculación en acciones formativas externas (mínimo de 150 horas y/o coste mínimo de 600€ para cada participante)"]
[]
[]
[]
[]
[null,null,null,null,null,null,null,null,"Subtotal D.7",{"$f":"SUM(J51:J54)","v":0},{"$f":"SUM(K51:K54)","v":0}]
["AC2.D2. Coste salarial personas trabajadoras que participen en acciones formativas de las administraciones públicas, universidades y ateneos cooperativos y equivalentes a las horas efectivamente dedicadas a esta formación (máximo 30% subvención)"]
[]
[]
[]
[]
[null,null,null,null,null,null,null,null,"Subtotal D.8",{"$f":"SUM(J57:J60)","v":0},{"$f":"SUM(K57:K60)","v":0}]
[]
["Submodalidad AC3"]
["AC3.D1.  Gastos de ayuda económica–beca- de la persona estudiante en prácticas (duración mínima 400 horas, i coste bruto hora: mínimo de 6€/hora en prácticas universitarias, y mínimo de acuerdo con la normativa específica Dep. Educación en FP dual)"]
[]
[]
[]
[]
[null,null,null,null,null,null,null,null,"Subtotal D.9",{"$f":"SUM(J65:J68)","v":0},{"$f":"SUM(K65:K68)","v":0}]
["AC3.D2.  Gastos de seguridad social del alumno/a en prácticas"]
[]
[]
[]
[]
[null,null,null,null,null,null,null,null,"Subtotal D.10",{"$f":"SUM(J71:J74)","v":0},{"$f":"SUM(K71:K74)","v":0}]
["AC3.D3. Gastos del contrato laboral de la formación dual, modalidad contrato de formación i aprendizaje"]
[]
[]
[]
[]
[null,null,null,null,null,null,null,null,"Subtotal D.11",{"$f":"SUM(J77:J80)","v":0},{"$f":"SUM(K77:K80)","v":0}]
["AC3.D4.  Gastos de gestión asociados a la tramitación del Convenio de Cooperación Educativa o el Acuerdo Formativo de Colaboración/ Contrato de formación i aprendizaje"]
[]
[]
[]
[]
[null,null,null,null,null,null,null,null,"Subtotal D.12",{"$f":"SUM(J83:J86)","v":0},{"$f":"SUM(K83:K86)","v":0}]
["TOTAL GASTOS DIRECTOS",null,null,null,null,null,null,null,"TOTAL GASTOS DIRECTOS",{"$f":"+J17+J29+J35+J41+J47+J55+J61+J69+J75+J81+J87+J23","v":0},{"$f":"+K17+K29+K35+K41+K47+K55+K61+K69+K75+K81+K87+K23","v":0}]
["TOTAL GASTOS",null,null,null,null,null,null,null,"TOTAL",{"$f":"J88","v":0},{"$f":"K88","v":0}]
[]
[]
["El Sr./Sra. (indicar el nombre y apellidos de la persona representante que firma la justificación) con DNI/NIE (indicar el núm. DNI) en calidad de persona física beneficiaria o representante legal de la persona jurídica beneficiaria (indicar nombre y apellidos) con NIF (indicar núm DNI)."]
["CERTIFICA que los ingresos imputados al proyecto/actividad/servicio subvencionado han sido efectivamente ingresados; que custodiará la documentación soporte que lo acredita; que esta documentación se encuentra a disposición del Ayuntamiento de Barcelona o de los otros entes municipales en los archivos de esta organización, durante un período mínimo de 4 años a contar desde la fecha de presentación de la presente justificación."]
[]
[]
[null,"Población y fecha: ",null,null,"Firma y sello (en caso de registro físico)"]
[null,null,null,null,"En caso de presentación de la documentación por vía telemática, debe imprimir/ guardar las hojas en formato pdf y firmarlas electrónicamente mediante certificado digital (no será válida la firma escaneada)."]
[]
[]
["Notas:"]
["(*) Deben relacionarse todos los gastos del proyecto/actividad/servicio subvencionado. En el caso de que el número de filas de cada concepto sea insuficiente podéis insertar líneas dentro del mismo concepto seleccionando una celda verde y haciendo clic sobre el botón de insertar línea."]
["(0) El número de orden debe ser correlativo empezando por D.1.1, D.1.2, D.1.3, D.2.4, etc."]
["(1) Respecto a los gastos de recursos humanos, puede ser subvencionable el coste total salarial mensual, que corresponde a la suma de la retribución bruta que aparece en la nómina del trabajador/a más la cuota de la empresa a la Seg. Social. Los gastos de personal se justifican con la nómina del trabajador/a acompañada de los correspondientes RLC i RNT (anteriores TC1 y TC2) de la TGSS y el modelo 111 del IRPF."]
["(2) En el caso de que el documento justificativo del resto de gastos, no sea una factura, sino otro documento probatorio equivalente, como un recibo o justificante (como para dietas o transporte público), hay que indicarlo en la columna \"observaciones\""]
["(3) En el caso de que un justificante incluya conceptos que no tienen relación con el proyecto/actividad/servicio por el qué se ha otorgado la subvención, aquí sólo se debe indicar la parte que realmente se ha dedicado al proyecto."]
["(4) En esta columna se debe indicar el importe total o parcial de la factura que se imputa a la subvención recibda del Ayuntamiento de Barcelona. El total imputado, en esta columna, debe ser igual al importe de la subvención recibida."]
[]
["Modalidad Ac: Formación: Innovación y formación para la mejora de la gestión y la apertura de nuevas líneas de negocio"]
["1. La cuantía de la subvención otorgada no superará el 80% del gasto total del proyecto a subvencionar."]
["2. Las solicitudes pueden contener una propuesta de proyecto de formación que contenga las tres submodalidades (Ac1, Ac2 i Ac3), o bién tan sólo una submodalidad. "]
["3. En cualquier caso, el importe máximo de subvención, tanto si la solicitud contiene una, dos o tres submodalidades, será de 4.500€."]
["4. En caso de que la solicitud presentada sobrepase el importe máximo, se considerará como importe solicitado el máximo de lo establecido en la convocatoria."]
["5. En ningún caso se consideraran gastos subvencionables:\n> Los impuestos indirectos cuando sean susceptibles de recuperación o compensación.\n> Los gastos de inversión, incluídas las adquisiciones de bienes muebles.\n> Los gastos realizados con fecha anterior al inicio del proyecto y fecha posterior a la finalización del proyecto.\n> Otros gastos que se indiquen en la convocatoria.\n"]
["6. No son imputables en esta modalidad los gastos indirectos, detallados en el apartado 13.3. de las bases reguladoras."]
["7.La retribución de las personas contratadas en el marco del proyecto subvencionado no puede ser inferior al Salario Mínimo Interprofesional (SMI), ni a la estipulada en el correspondiente convenio o marco normativo de referencia (punto 7de las bases 2021: requisitos de los proyectos). De acuerdo con el Real decreto 817/2021, de 28 de septiembre, por el que se fija el salario mínimo interprofesional para el 2021, la cuantía mínima anual es de 13.510 euros. Este importe puede ser modificado, de acuerdo con la normativa vigente en el momento de su aplicación. "]
["8. Los proyectos subvencionados deben fomentar activitades de interés público o social, las cuales deben ser gratuítas para las personas participantes o en ningún caso el precio debe suponer un obstàculo para su participación, buscando otras formas de acceso para personas con dificultades económicas. En el caso que haya algún tipo de lucro, deberá revertir en las propias actividades subvencionadas."]
["9. El Ayuntamiento de Barcelona y sus entidades municipales en ningún caso subvencionarán el mismo proyecto, ejecutado durante el mismo período, por ningún otro procedimiento de concesión que no sea el regulado por las bases reguladoras."]
["10. El/la beneficiario/a no podrá alterar en ningún caso el destino de las subvenciones concedidas."]
[]
["Submodalidad Ac1: Formación grupal para persones socias, trabajadoras y voluntarias de la empresa/ organización, de un mínimo de 10 personas y 10 horas"]
["1. El precio máximo hora de los honorarios de las personas formadoras externas se limita a 60 euros/hora, incluído IRPF, si correspondre, pero excluído IVA en caso que la formación no esté exenta de este impuesto."]
["2. Los gastos de viaje y desplazamiento vinculados con las realización de la formación y imputables a las actividades del proyecto subvencionable se limitan a un máximo de un 10% del importe de la subvención."]
["3. La duración mínima de la formación grupal se establece en 10 hores para cada persona participante y el mínimo de participación se establece en 10 personas. Será exigible la hoja de firma de las personas participantes en la acción grupal."]
["4. Se deberá justificar  la contribución directa de las acciones en la mejora del proyecto empresarial."]
["5. Se podrán organizar sesiones de formacin compartidas por diferentes entidades de economía social y solidaria, para optimizar recursos y tiempo destinado a la realización de las acciones, y favorecer la intercooperación."]
["6. Los materiales producidos de difusión, estudios, informes o materiales didácticos utilizados, etc. en el caso de tractarse de gastos elegibles de la subvención, deberán tener licencia Creative Commons -Compartir Igual- (share a like) y no podrá tener la condición –Sin Obras Derivades- (no derivate Works). "]
[]
["Submodalidad Ac2: Gastos de matriculación del personal de la entidad en acciones formativas externas o bién gastos salariales del personal de la empresa/ organitzación en la participación en acciones formativas públicas o comunitarias sin coste de matriculación"]
["1.  La formación a subvencionar debe tener una duración mínima de 150 hora y/o un coste mínimo de 600€ para cada participante. "]
["2. Para justificar gastos salariales de las personas trabajadoras de la organización beneficiaria de la subvención, la duración mínima de las formaciones de todas las personas participantes deberá ser de mínimo 40h entre todas las personas participantes de la empresa/ organitzación."]
["3. Será exigible el certificado de asistencia y/o superación de la actividad formativa expedido por la organización formadora donde consten las horas, fechas y persona/s formada/s de la empresa/ organitzación."]
["4. Los gastos salariales de las personas trabajadoras de la organización beneficiaria, se limitan a un máximo de un 30% del importe de la subvención, sólo para los casos que participen en acciones formativas de las administraciones públicas, universidadesy ateneos cooperativos y equivalentes a las horas efectivamente dedicadas a esta formación."]
["5. Se deberá justificar  la contribución directa de las acciones en la mejora del proyecto empresarial."]
[]
["Submodalidad Ac3: Prácticas de las personas estudiantes universitarias y de formación dual de FP en organizaciones y empresas de la ESS"]
["1.  Será exigible el convenio de Cooperación Educativa con la universidad respectiva, o bién el Acuerdo Formativo de Col·laboración (en el caso de beca) o el Contrato de formación y aprendizaje con el Centro de Formación Profesional correspondiente, en el momento de la presentación de la justificación."]
["2.  El alumnado beneficiario deben ser personas residentes en la ciudad de Barcelona o estar matriculado en universidades o centros de formación de la ciudad de Barcelona."]
["3.  El programa de prácticas del alumnado tiene que tener una duración mínima de 400 horas."]
["4.  Sólo puede presentarse una solicitud de prácticas por un sitio de prácticas per organización solicitante. "]
["5.  Se deberá dar de alta al alumno/a en la seguridad social como alumno/a en prácticas (tanto para prácticas curriculares com extracurriculares universitarias como para los alumnos de FP en formación dual – modalidad beca-)."]
["6.  Se deberá remunerar  al alumno/a en prácticas universitarias (curriculares o extracurriculares)  con un coste bruto hora mínimo de 6€/hora o superior."]
["7.  Se deberá remunerar al alumno/a según la modalidad de FP dual escogida como mínimo de acuerdo con la normativa específica que establece el Departamento de Educación de la Generalidad de Cataluña, o superior."]
["8.  La formalización de las prácticas, el desarrollo del contenido, evaluación y seguimiento se ajustará a la normativa vigente del Departamento de Educación de la Generalidad de Cataluña y de otras normas que le sean de aplicación."]
["8.  La formalització de les pràctiques, el desenvolupament del contingut, avaluació i seguiment s’ajustarà a la normativa vigent del Departament d’Educació de la Generalitat de Catalunya i d’altres normes que li siguin d’aplicació."]

{"sheet":"Relación de ingresos ","index":1,"n_rows":79,"n_cols":10,"rows_kept":79,"cut":false,"hidden":false,"merged":[[74,5,75,9],[53,6,53,9],[52,6,52,9],[69,0,69,9],[70,0,71,9],[64,6,64,9],[59,6,59,9],[66,6,66,9],[60,6,60,9],[61,6,61,9],[62,6,62,9],[63,6,63,9],[66,0,66,3],[65,0,65,3],[65,6,65,9],[73,1,73,3],[0,0,0,9],[9,0,9,9],[15,0,15,9],[21,0,21,9],[7,6,8,9],[10,6,10,9],[11,6,11,9],[7,0,8,0],[12,6,12,9],[13,6,13,9],[3,2,3,3],[2,2,2,3],[6,0,6,3],[4,2,4,3],[7,2,7,3],[7,1,8,1],[14,0,14,3],[44,0,44,3],[27,0,27,9],[33,0,33,9],[39,0,39,9],[38,0,38,3],[32,0,32,3],[14,6,14,9],[20,6,20,9],[29,6,29,9],[28,6,28,9],[38,6,38,9],[37,6,37,9],[30,6,30,9],[32,6,32,9],[31,6,31,9],[26,0,26,3],[50,6,50,9],[49,6,49,9],[20,0,20,3],[45,0,45,9],[47,6,47,9],[46,6,46,9],[26,6,26,9],[25,6,25,9],[24,6,24,9],[23,6,23,9],[22,6,22,9],[36,6,36,9],[35,6,35,9],[48,6,48,9],[44,6,44,9],[19,6,19,9],[18,6,18,9],[17,6,17,9],[16,6,16,9],[34,6,34,9],[58,6,58,9],[56,0,56,3],[50,0,50,3],[41,6,41,9],[40,6,40,9],[51,0,51,9],[57,0,57,9],[56,6,56,9],[43,6,43,9],[42,6,42,9]]}
["Detalle de todos los ingresos obtenidos y aportaciones del propio beneficiario para la ejecución de la actividad subvencionada"]
[]
[null,"Nombre de la persona física/jurídica beneficiaria:        ",{"$f":"'Relación de gastos'!C3:C3","v":0},null,"Importe del coste total del proyecto:",null,null,{"$f":"IF(+'Relación de gastos'!J3=\"\",\"\",+'Relación de gastos'!J3)","v":""},"euros"]
[null,"Código de subvención:",{"$f":"'Relación de gastos'!C4:C4","v":0},null,"Importe de la subvención otorgada:",null,null,{"$f":"IF(+'Relación de gastos'!J4=\"\",\"\",+'Relación de gastos'!J4)","v":""},"euros"]
[null,"Nombre del proyecto subvencionado:",{"$f":"'Relación de gastos'!C5:C5","v":0},null,"Período de ejecución del proyecto subvencionado:",null,null,{"$f":"IF(+'Relación de gastos'!J5=\"\",\"\",+'Relación de gastos'!J5)","v":""},"a",{"$f":"IF(+'Relación de gastos'!M5=\"\",\"\",+'Relación de gastos'!M5)","v":""}]
[]
["Ingresos del proyecto/actividad/servicio subvencionado"]
["núm. de orden (0)","Concepto del ingreso","Emisor/a del ingreso",null,"Fecha de cobro\n(dd/mm/aaaa)\n","Importe","Observaciones"]
[null,null,"NIF","Nombre","(1)","euros"]
["A. Subvención municipal "]
[{"$f":"IF(B11<>\"\",1,\"\")","v":""}]
[]
[]
[{"$f":"IF(B14<>\"\",MAX($A$10:A13)+1,\"\")","v":""}]
[null,null,null,null,"Subtotal A",{"$f":"SUM(F11:F14)","v":0}]
["B. Subvenciones de otras administraciones"]
[{"$f":"IF(B17<>\"\",MAX($A$10:A16)+1,\"\")","v":""}]
[{"$f":"IF(B18<>\"\",MAX($A$10:A17)+1,\"\")","v":""}]
[{"$f":"IF(B19<>\"\",MAX($A$10:A18)+1,\"\")","v":""}]
[{"$f":"IF(B20<>\"\",MAX($A$10:A19)+1,\"\")","v":""}]
[null,null,null,null,"Subtotal B",{"$f":"SUM(F17:F20)","v":0}]
["C. Subvenciones de entes privados"]
[{"$f":"IF(B23<>\"\",MAX($A$10:A22)+1,\"\")","v":""}]
[{"$f":"IF(B24<>\"\",MAX($A$10:A23)+1,\"\")","v":""}]
[{"$f":"IF(B25<>\"\",MAX($A$10:A24)+1,\"\")","v":""}]
[{"$f":"IF(B26<>\"\",MAX($A$10:A25)+1,\"\")","v":""}]
[null,null,null,null,"Subtotal C",{"$f":"SUM(F23:F26)","v":0}]
["D. Recursos propios de la organización aplicados al proyecto"]
[{"$f":"IF(B29<>\"\",MAX($A$10:A28)+1,\"\")","v":""}]
[{"$f":"IF(B30<>\"\",MAX($A$10:A29)+1,\"\")","v":""}]
[{"$f":"IF(B31<>\"\",MAX($A$10:A30)+1,\"\")","v":""}]
[{"$f":"IF(B32<>\"\",MAX($A$10:A31)+1,\"\")","v":""}]
[null,null,null,null,"Subtotal D",{"$f":"SUM(F29:F32)","v":0}]
["E. Taquillaje"]
[{"$f":"IF(B35<>\"\",MAX($A$10:A34)+1,\"\")","v":""}]
[{"$f":"IF(B36<>\"\",MAX($A$10:A35)+1,\"\")","v":""}]
[{"$f":"IF(B37<>\"\",MAX($A$10:A36)+1,\"\")","v":""}]
[{"$f":"IF(B38<>\"\",MAX($A$10:A37)+1,\"\")","v":""}]
[null,null,null,null,"Subtotal E",{"$f":"SUM(F35:F38)","v":0}]
["F. Cuotas de inscripción"]
[{"$f":"IF(B41<>\"\",MAX($A$10:A40)+1,\"\")","v":""}]
[{"$f":"IF(B42<>\"\",MAX($A$10:A41)+1,\"\")","v":""}]
[{"$f":"IF(B43<>\"\",MAX($A$10:A42)+1,\"\")","v":""}]
[{"$f":"IF(B44<>\"\",MAX($A$10:A43)+1,\"\")","v":""}]
[null,null,null,null,"Subtotal F",{"$f":"SUM(F41:F44)","v":0}]
["G. Venta de Productos"]
[{"$f":"IF(B47<>\"\",MAX($A$10:A46)+1,\"\")","v":""}]
[{"$f":"IF(B48<>\"\",MAX($A$10:A47)+1,\"\")","v":""}]
[{"$f":"IF(B49<>\"\",MAX($A$10:A48)+1,\"\")","v":""}]
[{"$f":"IF(B50<>\"\",MAX($A$10:A49)+1,\"\")","v":""}]
[null,null,null,null,"Subtotal G",{"$f":"SUM(F47:F50)","v":0}]
["H. Publicidad y/o Esponsorización"]
[{"$f":"IF(B53<>\"\",MAX($A$10:A52)+1,\"\")","v":""}]
[{"$f":"IF(B54<>\"\",MAX($A$10:A53)+1,\"\")","v":""}]
[{"$f":"IF(B55<>\"\",MAX($A$26:A54)+1,\"\")","v":""}]
[{"$f":"IF(B56<>\"\",MAX($A$26:A55)+1,\"\")","v":""}]
[null,null,null,null,"Subtotal H",{"$f":"SUM(F53:F56)","v":0}]
["I. Otros ingressos"]
[{"$f":"IF(B59<>\"\",MAX($A$10:A58)+1,\"\")","v":""}]
[{"$f":"IF(B60<>\"\",MAX($A$10:A59)+1,\"\")","v":""}]
[{"$f":"IF(B61<>\"\",MAX($A$10:A60)+1,\"\")","v":""}]
[{"$f":"IF(B62<>\"\",MAX($A$10:A61)+1,\"\")","v":""}]
[{"$f":"IF(B63<>\"\",MAX($A$10:A62)+1,\"\")","v":""}]
[{"$f":"IF(B64<>\"\",MAX($A$10:A63)+1,\"\")","v":""}]
[{"$f":"IF(B65<>\"\",MAX($A$10:A64)+1,\"\")","v":""}]
[null,null,null,null,"Subtotal I",{"$f":"SUM(F59:F65)","v":0}]
["Total INGRESOS",null,null,null,"TOTAL",{"$f":"+F15+F21+F27+F33+F39+F45+F51+F57+F66","v":0}]
[]
[]
[{"$f":"'Relación de gastos'!A92:K92","v":"El Sr./Sra. (indicar el nombre y apellidos de la persona representante que firma la justificación) con DNI/NIE (indicar el núm. DNI) en calidad de persona física beneficiaria o representante legal de la persona jurídica beneficiaria (indicar nombre y apellidos) con NIF (indicar núm DNI)."}]
["CERTIFICA que los ingresos imputados al proyecto/actividad/servicio subvencionado han sido efectivamente ingresados; que custodiará la documentación soporte que lo acredita; que esta documentación se encuentra a disposición del Ayuntamiento de Barcelona o de los otros entes municipales en los archivos de esta organización, durante un período mínimo de 4 años a contar desde la fecha de presentación de la presente justificación."]
[]
[]
[null,"Población y fecha:",null,null,null,"Firma y sello (en caso de registro físico)"]
[null,null,null,null,null,"En caso de presentación de la documentación por vía telemática, debe imprimir/ guardar las hojas en formato pdf y firmarlas electrónicamente mediante certificado digital (no será válida la firma escaneada)."]
[]
[null,"Nota:"]
[null,"(0) El número de orden debe ser correlativo comenzando por el número A1, A2, A3, B4, etc."]
[null,"(1) ) En caso de que el ingreso esté pendiente de cobro, indicar \"P. Cobro\" "]

{"sheet":"Gastos e ingresos","index":2,"n_rows":69,"n_cols":11,"rows_kept":69,"cut":false,"hidden":false,"merged":[[42,0,42,10],[6,0,6,1],[6,2,6,3],[9,0,9,1],[9,6,9,7],[10,0,11,1],[10,2,11,2],[10,3,11,3],[10,6,11,7],[20,0,22,0],[23,0,27,0],[26,6,26,7],[28,0,29,0],[27,6,27,7],[27,8,27,9],[34,0,34,9],[4,0,4,1],[4,2,4,3],[4,5,4,6],[5,0,5,1],[5,2,5,3],[5,5,5,6],[48,0,48,10],[10,8,11,8],[10,9,11,9],[43,0,43,10],[44,0,44,10],[45,0,45,10],[46,0,46,10],[47,0,47,10],[38,1,38,2],[35,0,36,9],[12,0,19,0],[12,1,13,1],[12,2,13,2],[12,3,13,3],[12,4,13,4],[39,4,40,10]]}
[]
[]
["Estado de los gastos realizados y de los ingressos obtenidos por la ejecución de la actividad subvencionada (*)"]
[]
["Nombre de la persona física/jurídica beneficiaria:         ",null,{"$f":"'Relación de ingresos '!C3:D3","v":0},null,null,"Importe del coste total del proyecto:",null,{"$f":"'Relación de ingresos '!H3","v":""},"euros"]
["Código de subvención:",null,{"$f":"'Relación de ingresos '!C4:D4","v":0},null,null,"Importe de la subvención otorgada",null,{"$f":"'Relación de ingresos '!H4","v":""},"euros"]
["Nombre del proyecto subvencionado:",null,{"$f":"'Relación de ingresos '!C5:D5","v":0},null,null,"Período de ejecución del proyecto subvencionado:",null,null,{"$f":"'Relación de ingresos '!H5","v":""},"a",{"$f":"'Relación de ingresos '!J5","v":""}]
[]
["SUBVENCIONES PARA EL FORTALECIMIENTO Y REACTIVACIÓN DE LA ECONOMÍA SOCIAL Y SOLIDARIA 2021"]
["GASTOS PREVISTOS",null,"importe en euros",null,"importe en euros",null,"INGRESOS PREVISTOS",null,"importe en euros"]
["Gastos directos \n(aquellos que se identifican directamente con el proyecto)",null,"Previsión inicial o reformulada ya aprovada (1) ","Gastos realizados (2)","Diferencia\n",null,"Ingresos previstos",null,"Previsión inicial (1","Ingresos obtenidos (3) "]
[null,null,null,null,"(2-1)"]
["Ac1","D1.   Honorarios de las personas formadoras externas (precio máximo hora 60€/hora, incluído IRPF si corresponde, no incluído IVA si formación no está exenta)",null,{"$f":"'Relación de gastos'!J17","v":0},{"$f":"+C13-D13","v":0},null,"A.","Subvención municipal (importe solicitado a la instancia/otorgado)",null,{"$f":"'Relación de ingresos '!F15","v":0}]
[null,null,null,null,null,null,"B.","Subvenciones de otras administraciones",null,{"$f":"'Relación de ingresos '!F21","v":0}]
[null,"D2.  Alquiler de biens immuebles vinculados directamente a la realitzación de la formación",null,{"$f":"'Relación de gastos'!J23","v":0},{"$f":"+C15-D15","v":0},null,"C.","Subvenciones de entes privados",null,{"$f":"'Relación de ingresos '!F27","v":0}]
[null,"D3.  Adquisición de materiales y bienes consumibles necesarios para la realización de la formación",null,{"$f":"'Relación de gastos'!J29","v":0},{"$f":"+C16-D16","v":0},null,"D.","Recursos propios de la organización aplicados al proyecto",null,{"$f":"'Relación de ingresos '!F33","v":0}]
[null,"D4. Transporte – mensajería directamente vinculado con la realización de la formación",null,{"$f":"'Relación de gastos'!J35","v":0},{"$f":"+C17-D17","v":0},null,"E.","Taquillaje",null,{"$f":"'Relación de ingresos '!F39","v":0}]
[null,"D5.  Seguros",null,{"$f":"'Relación de gastos'!J41","v":0},{"$f":"+C18-D18","v":0},null,"F.","Cuotas de inscripción",null,{"$f":"'Relación de ingresos '!F45","v":0}]
[null,"D6.  Viajes y desplazamientos imputables a las actividades del proyecto  (máximo 10% subvención) ",null,{"$f":"'Relación de gastos'!J47","v":0},{"$f":"+C19-D19","v":0},null,"G.","Venta de productos",null,{"$f":"'Relación de ingresos '!F51","v":0}]
[null,"Subtotal  gastos directos Ac1",{"$f":"SUM(C13:C19)","v":0},{"$f":"SUM(D13:D19)","v":0},{"$f":"SUM(E13:E19)","v":0},null,"H","Publicidad y/o Esponsorización",null,{"$f":"'Relación de ingresos '!F56","v":0}]
["Ac2","D7.  Gastos de matriculación en acciones formativas externas (mínimo de 150 horas y/o coste mínimo de 600€ para cada participante)",null,{"$f":"'Relación de gastos'!J55","v":0},{"$f":"+C21-D21","v":0},null,"I","Otros ingresos",null,{"$f":"'Relación de ingresos '!F63","v":0}]
[null,"D.8.  Coste salarial personas trabajadoras que participen en acciones formativas de las administraciones públicas, universidades y ateneos cooperativos y equivalentes a las horas efectivamente dedicadas a esta formación (máximo 30% subvención)",null,{"$f":"'Relación de gastos'!J61","v":0},{"$f":"+C22-D22","v":0},null,null,"Total Ingresos",{"$f":"SUM(I13:I21)","v":0},{"$f":"SUM(J13:J21)","v":0}]
[null,"Subtotal  gastos directos Ac2",{"$f":"SUM(C21:C22)","v":0},{"$f":"SUM(D21:D22)","v":0},{"$f":"SUM(E21:E22)","v":0}]
["Ac3","D9.  Gastos de ayuda económica–beca- de la persona estudiante en prácticas (duración mínima 400 horas, i coste bruto hora: mínimo de 6€/hora en prácticas universitarias, y mínimo de acuerdo con la normativa específica Dep. Educación en FP dual)",null,{"$f":"'Relación de gastos'!J69","v":0},{"$f":"+C24-D24","v":0},null,null,null,null,null,{"$f":"+IF(J24<0,\"No s'admeten valors negatius\",\"\")","v":""}]
[null,"D10.  Gastos de seguridad social del alumno/a en prácticas",null,{"$f":"'Relación de gastos'!J75","v":0},{"$f":"+C25-D25","v":0}]
[null,"D11. Gastos del contrato laboral de la formación dual, modalidad contrato de formación i aprendizaje",null,{"$f":"'Relación de gastos'!J81","v":0},{"$f":"+C26-D26","v":0}]
[null,"D12  Gastos de gestión asociados a la tramitación del Convenio de Cooperación Educativa o el Acuerdo Formativo de Colaboración/ Contrato de formación i aprendizaje",null,{"$f":"'Relación de gastos'!J87","v":0},{"$f":"+C27-D27","v":0},null,"Ingresos menos gastos",null,{"$f":"I22-C30","v":0},{"$f":"J22-D30","v":0}]
[null,"Subtotal gastos directos Ac3",{"$f":"SUM(C24:C27)","v":0},{"$f":"SUM(D24:D27)","v":0},{"$f":"SUM(E24:E27)","v":0},null,"Desviación de Gastos (4)",null,"Desviación de ingresos (4)"]
["Ac","Total gastos directos   ",{"$f":"C20+C23+C28","v":0},{"$f":"D20+D23+D28","v":0},{"$f":"E20+E23+E28","v":0},null,"Importe"," % ","Importe ","%"]
[null,"Total gastos  ",{"$f":"C29","v":0},{"$f":"+D29","v":0},{"$f":"+E29","v":0},null,{"$f":"D30-C30","v":0},{"$f":"D30/C30","v":{"$error":"#DIV/0!"}},{"$f":"J22-I22","v":0},{"$f":"J22/I22","v":{"$error":"#DIV/0!"}}]
[null,null,null,null,null,null,null,null,"% subvencionado inicialmente o después de reformulación (5)",{"$f":"I13/I22","v":{"$error":"#DIV/0!"}}]
[null,null,null,null,null,null,null,null,"% subvencionado después de justificación (6)",{"$f":"J13/J22","v":{"$error":"#DIV/0!"}}]
[]
[]
["El Sr./Sra. (indicar el nombre y apellidos de la persona representante que firma la justificación) con DNI/NIE (indicar el núm. DNI) en calidad de persona física beneficiaria o representante legal de la persona jurídica beneficiaria (indicar nombre y apellidos) con NIF (indicar núm DNI)."]
["CERTIFICA que los ingresos imputados al proyecto/actividad/servicio subvencionado han sido efectivamente ingresados; que custodiará la documentación soporte que lo acredita; que esta documentación se encuentra a disposición del Ayuntamiento de Barcelona o de los otros entes municipales en los archivos de esta organización, durante un período mínimo de 4 años a contar desde la fecha de presentación de la presente justificación."]
[]
[]
[null,"Población y fecha: ",null,null,"Firma y sello (en caso de registro físico)"]
[null,null,null,null,"En caso de presentación de la documentación por vía telemática, debe imprimir/ guardar las hojas en formato pdf y firmarlas electrónicamente mediante certificado digital (no será válida la firma escaneada)."]
[]
["Notas:"]
["(*) Las columnas sombreadas en color se irán rellenando automáticamente a partir de los datos introducidos en los documentos de gastos -detalle e ingresos-detalle. Por lo tanto, no imprimir esta hoja hasta haber rellenado las otras."]
["(1) Previsión inicial o reformulación ya aprobada= Se debe indicar la previsión inicial de gastos y de ingresos según aquello que se indicó en el proyecto original en el \"plan de viabilidad económica del proyecto - presupuesto general\". En caso de que ya se haya aprobado una reformulación, se deben indicar las cantidades reformuladas.  "]
["(2) Gastos reales = Coste real total del proyecto subvencionado. Automáticamente se introducirán los subtotales de los gastos relacionados en la hoja Gastos-detalle."]
["(3) Ingresos reales = Total de ingresos obtenidos para la realización del proyecto subvencionado. Automáticamente se introducirán los subtotales de los ingresos relacionados en la hoja Ingresos-detalle."]
["(4) Desviación= En el caso de los gastos, la desviación es la diferencia entre gastos reales y la previsión inicial de gastos; y en el caso de ingresos, la diferencia entre los ingresos reales y la previsión inicial de ingresos. "]
["(5) % financiación municipal inicial o después de reformulación = porcentaje que supone la subvencións municipal (A) respecto del total de ingresos del proyecto subvencionado."]
["(6) % financiación municipal después de justificación=  porcentaje que supone la subvencións municipal (A) respecto del total de ingresos del proyecto subvencionado. En caso de existir una desviación siempre ha de motivarse."]
[]
[]
[]
[]
[]
[]
[]
[]
[]
[]
[]
[]
[]
[]
[]
[]
[]
[]
[]
[null,null,0]